bitfinex-derivatives/quotes_SOLF0:USTF0_20250211
["timestamp","ask_amount","ask_price","bid_price","bid_amount"]
[1739290216850,3.1867,199.38,199.29,5.0173]
[1739290217051,3.1867,199.38,199.26,21.76259375]
[1739290217855,5.0168,199.32,199.3,0.03379177]
[1739290218854,0.036068,199.34,199.3,0.03379177]
[1739290219054,5.0166,199.33,199.3,0.03379177]
[1739290219758,5.052468,199.34,199.3,0.03379177]
[1739290220051,0.036068,199.34,199.3,0.03379177]
[1739290220256,5.017,199.32,199.3,0.03379177]
[1739290221056,0.036068,199.34,199.3,0.03379177]
[1739290221654,5.0168,199.32,199.3,0.03379177]
[1739290221850,0.036068,199.34,199.3,0.03379177]
[1739290222255,0.036068,199.34,199.3,5.05099177]
[1739290222660,5.0165,199.33,199.3,0.03379177]
[1739290222857,0.036068,199.34,199.3,0.03379177]
[1739290223054,0.036068,199.34,199.32,13.58678095]
[1739290223358,0.036068,199.34,199.33,5.0165]
[1739290223558,0.036068,199.34,199.32,13.58678095]
[1739290224859,0.036068,199.34,199.33,5.0165]
[1739290225560,0.036068,199.34,199.32,13.58678095]
[1739290227258,0.036068,199.34,199.33,5.0165]
[1739290228457,1.5756,199.42,199.36,5.0156]
[1739290228761,1.5756,199.42,199.37,13.58678095]
[1739290228955,5.0145,199.41,199.37,13.58678095]
[1739290229457,5.0145,199.41,199.37,13.62004997]
[1739290229667,5.04648937,199.41,199.37,13.62004997]
[1739290230364,1.4652,199.52,199.4,13.58678095]
[1739290230558,1.4652,199.52,199.43,13.58678095]
[1739290230965,5.0134,199.46,199.43,13.58678095]
[1739290231170,1.4652,199.52,199.43,13.58678095]
[1739290231467,5.0135,199.46,199.43,13.58678095]
[1739290231969,5.0135,199.46,199.43,13.62049885]
[1739290232268,0.03370862,199.49,199.43,13.62049885]
[1739290233368,5.0136,199.45,199.43,13.62049885]
[1739290233873,0.03370862,199.49,199.43,13.62049885]
[1739290234574,5.013,199.47,199.43,18.63449885]
[1739290234775,0.03370862,199.49,199.43,13.62049885]
[1739290236375,5.0133,199.46,199.43,18.63429885]
[1739290236675,0.03370862,199.49,199.43,18.63429885]
[1739290236867,5.0132,199.47,199.43,18.63429885]
[1739290237068,0.03370862,199.49,199.43,18.63429885]
[1739290237773,5.0132,199.47,199.43,18.63429885]
[1739290237973,0.03370862,199.49,199.48,5.0127]
[1739290238878,5.0113,199.54,199.46,13.58678095]
[1739290239178,5.0113,199.54,199.5,13.58678095]
[1739290240076,0.0317829,199.54,199.5,13.62150137]
[1739290240474,0.0317829,199.54,199.5,0.03472042]
[1739290240974,5.0115,199.53,199.5,0.03472042]
[1739290241176,0.0317829,199.54,199.5,13.62150137]
[1739290241666,5.0116,199.53,199.5,13.62150137]
[1739290242271,5.012,199.51,199.5,0.03472042]
[1739290242581,0.0317829,199.54,199.5,13.62150137]
[1739290243177,0.0317829,199.54,199.5,0.03472042]
[1739290244573,5.0119,199.52,199.5,0.03472042]
[1739290244776,0.0317829,199.54,199.5,0.03472042]
[1739290247085,0.0317829,199.54,199.5,13.62150137]
[1739290247280,0.0317829,199.54,199.51,5.0119]
[1739290248180,0.0317829,199.54,199.5,13.62150137]
[1739290249385,5.0117,199.53,199.5,13.62150137]
[1739290249685,0.0317829,199.54,199.5,13.62150137]
[1739290250879,0.0317829,199.54,199.5,0.03472042]
[1739290251283,5.012,199.51,199.5,0.03472042]
[1739290253385,5.012,199.52,199.5,0.03472042]
[1739290253586,0.0317829,199.54,199.5,0.03472042]
[1739290254084,5.0118,199.52,199.5,0.03472042]
[1739290254686,5.012,199.51,199.5,0.03472042]
[1739290255188,0.0317829,199.54,199.44,13.58678095]
[1739290255382,13.58678095,199.56,199.44,13.58678095]
[1739290255779,13.58678095,199.53,199.41,13.58678095]
[1739290255984,13.58678095,199.5,199.38,13.58678095]
[1739290256488,5.014,199.44,199.42,0.03475955]
[1739290257290,0.03780887,199.46,199.42,0.03475955]
[1739290257291,5.014,199.43,199.42,0.03475955]
[1739290260389,5.0142,199.42,199.35,13.58678095]
[1739290260593,1.5336,199.45,199.35,13.58678095]
[1739290260795,1.5336,199.45,199.38,18.60178095]
[1739290260994,5.0139,199.44,199.38,13.58678095]
[1739290261588,0.03791066,199.43,199.4,5.0147]
[1739290261791,1.523,199.5,199.41,13.58678095]
[1739290261993,1.523,199.5,199.44,13.58678095]
[1739290262295,0.03192409,199.47,199.44,13.58678095]
[1739290262496,0.03192409,199.47,199.45,0.03335834]
[1739290263492,0.03192409,199.47,199.45,5.04665834]
[1739290263689,67.4883193,199.59,199.48,13.58678095]
[1739290264090,53.90153835,199.59,199.48,13.58678095]
[1739290264691,5.0115,199.54,199.52,0.03587735]
[1739290266994,0.03726991,199.55,199.52,0.03587735]
[1739290268198,5.04826991,199.55,199.52,0.03587735]
[1739290268398,0.03726991,199.55,199.52,0.03587735]
[1739290269498,5.0112,199.54,199.52,0.03587735]
[1739290269800,0.03726991,199.55,199.52,0.03587735]
[1739290270799,5.0115,199.53,199.52,0.03587735]
[1739290271495,0.03726991,199.55,199.48,13.58678095]
[1739290272402,5.0115,199.53,199.48,13.58678095]
[1739290272602,0.03726991,199.55,199.5,0.03267093]
[1739290273194,13.58678095,199.53,199.39,13.58678095]
[1739290273601,13.58678095,199.53,199.41,5.0143]
[1739290274001,5.0135,199.45,199.4,5.0147]
[1739290274604,0.0375976,199.44,199.41,0.03538835]
[1739290275101,0.0375976,199.44,199.42,13.58678095]
[1739290275302,0.0375976,199.44,199.43,5.014]
[1739290275505,5.0122,199.51,199.42,13.58678095]
[1739290275799,13.58678095,199.56,199.45,13.58678095]
[1739290276005,5.0122,199.51,199.45,13.58678095]
[1739290276600,0.03419566,199.5,199.46,0.03416247]
[1739290277002,0.03419566,199.5,199.48,13.58678095]
[1739290277401,5.0105,199.57,199.48,13.58678095]
[1739290277602,4.5213,199.59,199.51,13.58678095]
[1739290278604,0.03706818,199.57,199.53,0.03383681]
[1739290279401,0.03706818,199.57,199.54,13.58678095]
[1739290282300,0.03706818,199.57,199.53,0.03383681]
[1739290283098,0.03706818,199.57,199.54,13.58678095]
[1739290284198,1.5077,199.64,199.54,13.58678095]
[1739290284395,1.5077,199.64,199.58,13.58678095]
[1739290285206,195.0,199.7,199.61,13.58678095]
[1739290285501,1.4864,199.7,199.61,13.58678095]
[1739290285705,5.0083,199.66,199.64,0.03305214]
[1739290285906,0.03355805,199.67,199.64,0.03305214]
[1739290286800,5.0085,199.65,199.64,0.03305214]
[1739290287304,5.0098,199.6,199.58,13.58678095]
[1739290287504,1.4864,199.7,199.58,13.58678095]
[1739290287704,13.58678095,199.68,199.55,13.58678095]
[1739290287908,5.0103,199.58,199.55,13.58678095]
[1739290288102,13.58678095,199.68,199.55,13.58678095]
[1739290288301,5.0087,199.65,199.55,13.58678095]
[1739290288604,1.4915,199.64,199.55,13.62084063]
[1739290288800,0.03707414,199.62,199.55,13.58678095]
[1739290289001,0.03707414,199.62,199.58,0.03375344]
[1739290289399,5.01,199.59,199.58,0.03375344]
[1739290291509,5.0115,199.53,199.52,13.58678095]
[1739290291907,13.58678095,199.62,199.49,13.58678095]
[1739290292211,5.0122,199.5,199.46,13.58678095]
[1739290292710,5.04381436,199.5,199.46,13.62139071]
[1739290293209,0.03161436,199.5,199.46,13.62139071]
[1739290293710,0.03161436,199.5,199.46,18.63459071]
[1739290293909,0.03161436,199.5,199.49,13.58678095]
[1739290294115,0.03161436,199.5,199.46,13.62139071]
[1739290294116,5.04381436,199.5,199.46,13.62139071]
[1739290295211,0.03161436,199.5,199.46,13.62139071]
[1739290296215,0.03161436,199.5,199.49,13.58678095]
[1739290301215,0.03161436,199.5,199.46,13.62139071]
[1739290301613,5.0125,199.49,199.46,13.62139071]
[1739290302025,0.03161436,199.5,199.46,13.62139071]
[1739290302229,5.04411436,199.5,199.46,13.62139071]
[1739290303126,0.03161436,199.5,199.46,13.62139071]
[1739290304027,5.0127,199.49,199.46,13.62139071]
[1739290304229,0.03161436,199.5,199.46,13.62139071]
[1739290304528,5.04401436,199.5,199.46,13.62139071]
[1739290305533,0.03161436,199.5,199.46,0.03460976]
[1739290306129,0.03161436,199.5,199.46,13.62139071]
[1739290306331,0.03161436,199.5,199.46,18.63449071]
[1739290306531,0.03161436,199.5,199.46,13.62139071]
[1739290307145,0.03161436,199.5,199.46,0.03460976]
[1739290307431,0.03161436,199.5,199.49,13.58678095]
[1739290316533,0.03161436,199.5,199.46,13.62139071]
[1739290317237,0.03161436,199.5,199.46,18.63459071]
[1739290317437,0.03161436,199.5,199.46,13.62139071]
[1739290317939,0.03161436,199.5,199.49,13.58678095]
[1739290319839,0.03161436,199.5,199.49,18.59928095]
[1739290320036,1.5106,199.6,199.49,13.58678095]
[1739290320231,1.5106,199.6,199.52,13.58678095]
[1739290320841,5.0106,199.57,199.52,18.59848095]
[1739290321040,0.03394197,199.56,199.53,0.03773]
[1739290321436,0.03394197,199.56,199.53,5.04913]
[1739290322240,0.03394197,199.56,199.55,18.59778095]
[1739290322638,0.03394197,199.56,199.53,0.03773]
[1739290323438,5.0093,199.62,199.56,5.0106]
[1739290324543,4.6386,199.67,199.55,13.58678095]
[1739290324741,0.03476548,199.61,199.57,0.03696085]
[1739290325436,5.01,199.6,199.57,0.03696085]
[1739290325841,0.03476548,199.61,199.57,0.03696085]
[1739290326037,5.0097,199.6,199.57,0.03696085]
[1739290330347,5.01,199.59,199.57,0.03696085]
[1739290330547,0.03476548,199.61,199.57,0.03696085]
[1739290331046,5.0102,199.58,199.57,0.03696085]
[1739290332451,0.03476548,199.61,199.57,0.03696085]
[1739290332846,5.01,199.6,199.57,0.03696085]
[1739290333650,5.0101,199.59,199.57,0.03696085]
[1739290334750,5.0102,199.58,199.57,0.03696085]
[1739290335642,5.01,199.6,199.57,0.03696085]
[1739290335843,0.03476548,199.61,199.57,0.03696085]
[1739290337144,5.04426548,199.61,199.57,0.03696085]
[1739290337652,0.03476548,199.61,199.57,13.6237418]
[1739290337853,0.03476548,199.61,199.57,18.6339418]
[1739290338155,0.03476548,199.61,199.57,13.6237418]
[1739290339955,0.03476548,199.61,199.6,13.58678095]
[1739290341154,0.03476548,199.61,199.6,18.59648095]
[1739290342950,4.6386,199.67,199.63,5.0088]
[1739290342951,3.1777,199.67,199.63,5.0088]
[1739290343148,3.1777,199.67,199.63,18.59558095]
[1739290343554,3.1777,199.67,199.63,13.58678095]
[1739290343952,3.21409303,199.67,199.63,13.62118]
[1739290344156,8.22219303,199.67,199.63,13.62118]
[1739290344355,3.21409303,199.67,199.63,13.62118]
[1739290344554,3.21409303,199.67,199.63,0.03439905]
[1739290344758,5.0084,199.66,199.63,0.03439905]
[1739290345156,5.0086,199.65,199.63,0.03439905]
[1739290346962,5.0083,199.66,199.63,0.03439905]
[1739290348856,1.63829303,199.67,199.63,0.03439905]
[1739290351163,1.63829303,199.67,199.63,5.04329905]
[1739290351464,1.63829303,199.67,199.63,0.03439905]
[1739290352261,5.0085,199.66,199.63,0.03439905]
[1739290352662,1.63829303,199.67,199.63,0.03439905]
[1739290353159,5.0087,199.64,199.63,0.03439905]
[1739290354460,5.0085,199.66,199.63,0.03439905]
[1739290354660,1.63829303,199.67,199.63,8.70272442]
[1739290355061,5.0084,199.66,199.63,8.70272442]
[1739290355468,1.63829303,199.67,199.63,8.70272442]
[1739290355765,1.63829303,199.67,199.63,0.03439905]
[1739290356263,5.0087,199.65,199.63,0.03439905]
[1739290356565,1.63829303,199.67,199.63,0.03439905]
[1739290356764,5.0082,199.66,199.63,0.03439905]
[1739290357465,1.63829303,199.67,199.63,0.03439905]
[1739290358059,0.03639303,199.67,199.65,13.54302661]
[1739290358265,1.5247,199.72,199.65,13.54302661]
[1739290358466,1.5432,199.74,199.69,5.0073]
[1739290358864,1.5432,199.74,199.68,13.54302661]
[1739290359166,5.0065,199.73,199.68,13.54302661]
[1739290359360,5.0065,199.73,199.69,0.03225252]
[1739290359564,0.03577076,199.72,199.69,0.03225252]
[1739290360368,5.04247076,199.72,199.69,0.03225252]
[1739290361168,0.03577076,199.72,199.69,0.03225252]
[1739290361767,5.0072,199.7,199.69,0.03225252]
[1739290362367,0.03577076,199.72,199.69,0.03225252]
[1739290362570,5.04247076,199.72,199.69,0.03225252]
[1739290363071,0.03577076,199.72,199.69,0.03225252]
[1739290363667,5.0072,199.7,199.69,0.03225252]
[1739290363870,0.03577076,199.72,199.62,13.54302661]
[1739290364071,1.5343,199.73,199.62,13.54302661]
[1739290364978,0.03238785,199.69,199.66,0.03688319]
[1739290365781,5.0082,199.67,199.66,0.03688319]
[1739290370288,0.03238785,199.69,199.59,13.54302661]
[1739290370483,1.6024,199.68,199.59,13.54302661]
[1739290370683,1.6024,199.68,199.56,13.54302661]
[1739290371381,5.0097,199.6,199.56,13.54302661]
[1739290371681,5.0097,199.6,199.56,13.58119421]
[1739290371888,0.03610942,199.6,199.56,13.58119421]
[1739290372087,0.03610942,199.6,199.56,18.59189421]
[1739290372381,0.03610942,199.6,199.56,13.58119421]
[1739290373383,0.03610942,199.6,199.56,0.0381676]
[1739290373884,5.0105,199.57,199.56,0.0381676]
[1739290375984,1.5841,199.59,199.5,13.54302661]
[1739290376187,5.011,199.55,199.5,13.54302661]
[1739290377084,5.0113,199.54,199.5,13.54302661]
[1739290377286,5.04771369,199.54,199.51,0.03514125]
[1739290377584,0.03641369,199.54,199.51,0.03514125]
[1739290378488,0.03641369,199.54,199.47,13.54302661]
[1739290379078,5.0118,199.52,199.47,13.54302661]
[1739290379583,5.0118,199.52,199.48,0.03336344]
[1739290379784,5.0115,199.53,199.48,0.03336344]
[1739290379980,0.03641369,199.54,199.5,13.54302661]
[1739290381083,5.04791369,199.54,199.48,0.03336344]
[1739290381279,0.03641369,199.54,199.48,0.03336344]
[1739290381790,0.03641369,199.54,199.5,13.54302661]
[1739290383294,5.04781369,199.54,199.5,13.54302661]
[1739290383594,0.03641369,199.54,199.5,13.54302661]
[1739290383890,0.03641369,199.54,199.48,0.03336344]
[1739290384591,5.0121,199.51,199.48,0.03336344]
[1739290385903,5.0125,199.5,199.44,13.54302661]
[1739290386193,1.5169,199.53,199.44,13.54302661]
[1739290386491,5.0127,199.49,199.44,13.54302661]
[1739290386894,0.03636377,199.48,199.45,0.03551863]
[1739290387594,0.03636377,199.48,199.46,5.0132]
[1739290387795,0.03636377,199.48,199.47,13.54302661]
[1739290388086,0.03636377,199.48,199.47,18.55602661]
[1739290388282,1.4734,199.58,199.47,13.54302661]
[1739290388488,5.0107,199.57,199.5,13.54302661]
[1739290388689,1.4734,199.58,199.51,5.0119]
[1739290389087,1.4734,199.58,199.5,13.54302661]
[1739290389088,1.4734,199.58,199.5,18.55522661]
[1739290389290,1.4734,199.58,199.5,13.54302661]
[1739290389488,0.03165728,199.56,199.52,0.03480007]
[1739290389892,5.0111,199.55,199.52,0.03480007]
[1739290390494,5.04245728,199.56,199.52,0.03480007]
[1739290392698,5.011,199.55,199.52,0.03480007]
[1739290393797,5.04245728,199.56,199.52,0.03480007]
[1739290394599,0.03165728,199.56,199.52,0.03480007]
[1739290395102,5.04235728,199.56,199.52,0.03480007]
[1739290395398,0.03165728,199.56,199.52,0.03480007]
[1739290396392,5.0111,199.55,199.52,0.03480007]
[1739290396903,0.03165728,199.56,199.52,5.04630007]
[1739290397290,0.03165728,199.56,199.52,0.03480007]
[1739290397600,0.03165728,199.56,199.53,13.54302661]
[1739290398294,0.03165728,199.56,199.54,5.0112]
[1739290398703,0.03165728,199.56,199.53,13.54302661]
[1739290398997,1.4864,199.64,199.53,13.54302661]
[1739290399195,1.4864,199.64,199.58,13.54302661]
[1739290400098,0.03525455,199.63,199.59,0.03445208]
[1739290400489,0.03525455,199.63,199.59,5.04435208]
[1739290402603,0.03525455,199.63,199.62,5.0092]
[1739290403499,0.03525455,199.63,199.61,13.54302661]
[1739290404099,0.03525455,199.63,199.61,18.55242661]
[1739290404296,0.03525455,199.63,199.61,13.54302661]
[1739290404994,0.03525455,199.63,199.62,5.0092]
[1739290405690,0.03525455,199.63,199.61,13.54302661]
[1739290405890,0.03525455,199.63,199.61,18.55242661]
[1739290406296,0.03525455,199.63,199.62,5.0092]
[1739290406997,0.03525455,199.63,199.61,18.55242661]
[1739290407502,0.03525455,199.63,199.61,13.54302661]
[1739290407701,0.03525455,199.63,199.62,5.0092]
[1739290407901,0.03525455,199.63,199.61,13.54302661]
[1739290408301,0.03525455,199.63,199.61,18.55242661]
[1739290408604,0.03525455,199.63,199.61,13.54302661]
[1739290409300,1.4609,199.71,199.61,13.54302661]
[1739290409506,1.4609,199.71,199.66,5.0082]
[1739290409704,1.4609,199.71,199.68,8.66162033]
[1739290410005,5.0071,199.71,199.68,8.66162033]
[1739290410207,2.9622,199.74,199.68,8.66162033]
[1739290410403,0.03655126,199.71,199.68,8.69808822]
[1739290410701,5.04355126,199.71,199.68,8.69808822]
[1739290410902,0.03655126,199.71,199.7,8.66162033]
[1739290411301,5.04355126,199.71,199.7,8.66162033]
[1739290411602,5.04355126,199.71,199.68,0.03646789]
[1739290414906,5.0072,199.7,199.68,0.03646789]
[1739290415805,0.03655126,199.71,199.68,0.03646789]
[1739290416900,5.0075,199.69,199.68,0.03646789]
[1739290417100,0.03655126,199.71,199.68,0.03646789]
[1739290418407,5.04355126,199.71,199.68,0.03646789]
[1739290419707,0.03655126,199.71,199.68,0.03646789]
[1739290420108,0.03655126,199.71,199.69,13.53238495]
[1739290420410,0.03655126,199.71,199.7,5.0072]
[1739290421104,0.03655126,199.71,199.69,18.53978495]
[1739290421297,0.03655126,199.71,199.69,13.53238495]
[1739290422507,0.03655126,199.71,199.7,5.0072]
[1739290422708,0.03655126,199.71,199.69,13.53238495]
[1739290422909,0.03655126,199.71,199.7,5.0072]
[1739290427403,0.03655126,199.71,199.69,13.53238495]
[1739290428814,0.03655126,199.71,199.69,18.53968495]
[1739290429907,0.03655126,199.71,199.7,5.0072]
[1739290431614,0.03655126,199.71,199.7,13.66470801]
[1739290432314,5.005,199.79,199.74,5.0062]
[1739290432509,3.0344,199.81,199.78,8.65750801]
[1739290432908,5.0049,199.8,199.78,8.65750801]
[1739290433113,3.0344,199.81,199.78,8.65750801]
[1739290433512,3.06617673,199.81,199.78,8.69054784]
[1739290433712,5.0047,199.8,199.78,8.69054784]
[1739290434113,5.006,199.75,199.72,8.65750801]
[1739290435317,5.04412372,199.75,199.72,8.69167882]
[1739290436119,5.0062,199.74,199.72,8.69167882]
[1739290439320,5.0065,199.73,199.72,8.69167882]
[1739290439924,5.0063,199.74,199.72,8.69167882]
[1739290442224,0.03812372,199.75,199.72,8.69167882]
[1739290442422,5.0065,199.73,199.72,0.03417081]
[1739290443726,0.03812372,199.75,199.7,8.65750801]
[1739290444431,5.0067,199.73,199.7,8.65750801]
[1739290444631,0.03812372,199.75,199.7,8.65750801]
[1739290444825,0.03812372,199.75,199.7,8.6948296]
[1739290445524,0.03812372,199.75,199.72,8.65750801]
[1739290446524,5.0065,199.74,199.72,8.65750801]
[1739290446920,0.03812372,199.75,199.72,8.65750801]
[1739290447725,5.04412372,199.75,199.72,8.65750801]
[1739290447930,0.03812372,199.75,199.74,8.65750801]
[1739290449930,0.03812372,199.75,199.74,13.66370801]
[1739290451726,0.03812372,199.75,199.74,8.65750801]
[1739290455934,0.03812372,199.75,199.74,13.66370801]
[1739290456635,5.0044,199.82,199.74,8.65750801]
[1739290456826,1.5086,199.83,199.8,8.65750801]
[1739290457433,5.0045,199.81,199.8,8.65750801]
[1739290458135,5.0047,199.8,199.79,0.03809391]
[1739290458336,8.65750801,199.8,199.74,8.65750801]
[1739290458735,5.0059,199.76,199.74,8.65750801]
[1739290458936,8.65750801,199.8,199.74,8.65750801]
[1739290459338,1.5186,199.81,199.74,8.65750801]
[1739290459536,0.03272189,199.79,199.75,0.03324286]
[1739290460338,5.0057,199.77,199.75,0.03324286]
[1739290461032,5.0057,199.76,199.75,0.03324286]
[1739290461234,0.03272189,199.79,199.75,0.03324286]
[1739290461638,5.0056,199.77,199.75,0.03324286]
[1739290462335,0.03272189,199.79,199.75,0.03324286]
[1739290462535,5.0057,199.76,199.75,0.03324286]
[1739290463336,5.0055,199.77,199.75,0.03324286]
[1739290463737,5.0057,199.76,199.75,0.03324286]
[1739290465034,0.03272189,199.79,199.72,8.65750801]
[1739290465035,5.0065,199.73,199.72,8.65750801]
[1739290465233,8.65750801,199.78,199.7,8.65750801]
[1739290465539,8.65750801,199.76,199.7,8.65750801]
[1739290465740,1.5135,199.75,199.7,8.65750801]
[1739290465940,5.0063,199.74,199.7,8.65750801]
[1739290466238,0.03468997,199.74,199.7,8.69049521]
[1739290466439,0.03468997,199.74,199.72,8.65750801]
[1739290467341,5.0051,199.79,199.74,5.0062]
[1739290467534,5.0051,199.79,199.78,8.65750801]
[1739290467739,1.5357,199.8,199.78,8.65750801]
[1739290467933,6.5405,199.8,199.78,8.65750801]
[1739290468342,1.5186,199.81,199.78,8.65750801]
[1739290468542,0.03736151,199.81,199.78,8.65750801]
[1739290468738,5.04186151,199.81,199.78,8.65750801]
[1739290468938,5.04186151,199.81,199.77,0.03394631]
[1739290468939,0.03736151,199.81,199.8,8.65750801]
[1739290471441,0.03736151,199.81,199.8,13.66220801]
[1739290471647,0.03736151,199.81,199.8,8.65750801]
[1739290479556,0.03736151,199.81,199.8,13.66220801]
[1739290480254,0.03736151,199.81,199.8,8.65750801]
[1739290480757,0.03736151,199.81,199.8,13.66220801]
[1739290482253,0.03736151,199.81,199.8,8.65750801]
[1739290487163,0.03736151,199.81,199.8,13.66220801]
[1739290487459,8.65750801,199.92,199.8,8.65750801]
[1739290487764,8.65750801,199.92,199.77,0.03394631]
[1739290487765,10.21140801,199.92,199.85,8.65750801]
[1739290487956,5.0029,199.88,199.85,8.65750801]
[1739290488765,5.003,199.87,199.85,8.69466484]
[1739290489161,0.0366838,199.88,199.85,8.69466484]
[1739290489362,0.0366838,199.88,199.87,8.65750801]
[1739290491460,0.0366838,199.88,199.85,8.69466484]
[1739290491863,0.0366838,199.88,199.87,8.65750801]
[1739290492262,0.0366838,199.88,199.87,13.66050801]
[1739290493969,0.0366838,199.88,199.87,8.65750801]
[1739290503671,0.0366838,199.88,199.87,13.66050801]
[1739290504372,0.0366838,199.88,199.87,8.65750801]
[1739290504877,0.0366838,199.88,199.87,13.66050801]
[1739290505170,0.0366838,199.88,199.87,8.65750801]
[1739290505973,8.65750801,200.0,199.87,8.65750801]
[1739290506167,3.0959,199.98,199.93,8.65750801]
[1739290506376,3.0959,199.98,199.97,8.65750801]
[1739290506578,8.0962,199.98,199.97,8.65750801]
[1739290507078,5.0007,199.96,199.95,8.65750801]
[1739290507475,3.0959,199.98,199.95,8.65750801]
[1739290507981,3.0959,199.98,199.95,8.6899936]
[1739290508180,5.0005,199.97,199.95,8.6899936]
[1739290508680,3.0959,199.98,199.95,8.6899936]
[1739290508882,5.0007,199.96,199.95,8.6899936]
[1739290511482,5.0017,199.92,199.91,8.65750801]
[1739290512183,5.0022,199.9,199.89,8.65750801]
[1739290514083,5.0025,199.89,199.88,0.03809578]
[1739290514282,0.03450678,199.91,199.85,8.65750801]
[1739290514482,3.0673,199.9,199.85,8.65750801]
[1739290515082,5.0032,199.86,199.85,8.65750801]
[1739290515282,8.65750801,199.88,199.81,8.65750801]
[1739290515575,0.03642618,199.87,199.84,0.03588832]
[1739290515784,5.0035,199.85,199.84,0.03588832]
[1739290519086,0.03642618,199.87,199.84,0.03588832]
[1739290519288,0.03642618,199.87,199.86,8.65750801]
[1739290519884,0.03642618,199.87,199.86,13.66070801]
[1739290521886,1.5584,199.94,199.88,5.0027]
[1739290522082,1.5584,199.94,199.92,8.65750801]
[1739290524887,5.0015,199.93,199.92,8.65750801]
[1739290526284,0.03465874,199.95,199.92,8.65750801]
[1739290526589,0.03465874,199.95,199.94,8.65750801]
[1739290526887,5.03565874,199.95,199.94,8.65750801]
[1739290528689,0.03465874,199.95,199.94,8.65750801]
[1739290530384,0.03465874,199.95,199.94,13.65870801]
[1739290530886,1.604,200.0,199.94,8.65750801]
[1739290531084,6.4756,200.02,199.99,8.65750801]
[1739290531389,1.5132,200.07,200.01,8.65750801]
[1739290531591,4.9988,200.04,200.03,8.65750801]
[1739290532186,0.03315646,200.06,200.01,8.69469309]
[1739290532489,4.9992,200.02,200.01,8.65750801]
[1739290532688,4.9992,200.02,200.01,8.69050679]
[1739290532990,0.03293088,200.06,200.01,8.69050679]
[1739290533189,4.9987,200.04,200.03,8.65750801]
[1739290533684,4.9992,200.02,200.01,0.03299878]
[1739290533884,0.03293088,200.06,200.01,0.03299878]
[1739290534383,4.9992,200.03,200.01,0.03299878]
[1739290534582,0.03293088,200.06,200.01,0.03299878]
[1739290535184,4.9989,200.04,200.01,0.03299878]
[1739290535380,0.03293088,200.06,200.01,0.03299878]
[1739290536290,4.9992,200.03,200.01,0.03299878]
[1739290536792,0.03293088,200.06,200.01,0.03299878]
[1739290537993,4.9992,200.02,200.01,0.03299878]
[1739290539392,5.0005,199.97,199.96,13.48804737]
[1739290539695,15.00124737,200.07,199.93,13.48804737]
[1739290539894,195.0,200.06,199.93,13.48804737]
[1739290540496,0.03684239,200.01,199.98,0.03587415]
[1739290540695,0.03684239,200.01,199.93,13.48804737]
[1739290540994,13.48804737,200.0,199.87,13.48804737]
[1739290541188,1.5885,199.99,199.87,13.48804737]
[1739290541786,5.0025,199.9,199.87,13.48804737]
[1739290541990,5.0025,199.9,199.87,13.52033364]
[1739290542193,5.03515449,199.9,199.87,13.52033364]
[1739290542488,0.03265449,199.9,199.87,18.52313364]
[1739290542890,0.03265449,199.9,199.87,13.52033364]
[1739290543094,1.5885,199.99,199.89,5.0023]
[1739290543295,1.5885,199.99,199.91,13.48804737]
[1739290543502,1.5885,199.99,199.88,13.48804737]
[1739290544191,5.0015,199.93,199.92,0.03370658]
[1739290546597,0.03380921,199.95,199.88,13.48804737]
[1739290546787,0.03380921,199.95,199.85,13.48804737]
[1739290547096,15.09784737,199.97,199.85,13.48804737]
[1739290547396,5.0032,199.86,199.82,13.48804737]
[1739290548099,5.0032,199.86,199.82,13.52494675]
[1739290548100,0.03181471,199.86,199.82,13.52494675]
[1739290548696,0.03181471,199.86,199.85,13.48804737]
[1739290549300,0.03181471,199.86,199.85,18.49154737]
[1739290550605,0.03181471,199.86,199.85,13.48804737]
[1739290550901,0.03181471,199.86,199.82,13.52494675]
[1739290551398,5.0035,199.85,199.82,13.52494675]
[1739290551701,0.03181471,199.86,199.82,13.52494675]
[1739290551895,5.0035,199.85,199.82,13.52494675]
[1739290552194,0.03181471,199.86,199.82,13.52494675]
[1739290553096,5.0037,199.85,199.82,13.52494675]
[1739290553298,0.03181471,199.86,199.82,13.52494675]
[1739290553695,5.004,199.83,199.82,0.03689938]
[1739290553895,0.03181471,199.86,199.82,0.03689938]
[1739290554799,5.0035,199.85,199.82,13.52494675]
[1739290555098,0.03181471,199.86,199.82,13.52494675]
[1739290555393,5.03521471,199.86,199.82,13.52494675]
[1739290556701,5.0035,199.85,199.82,13.52494675]
[1739290556894,0.03181471,199.86,199.82,13.52494675]
[1739290557999,5.0035,199.85,199.82,13.52494675]
[1739290558299,0.03181471,199.86,199.82,13.52494675]
[1739290558701,5.0037,199.85,199.82,13.52494675]